bitfinex/quotes_BTCUSD_20230403
["timestamp","ask_amount","ask_price","bid_price","bid_amount"]
[1680562035052,1.29138532,27878.0,27872.0,0.14189681]
[1680562035053,1.29138532,27878.0,27875.0,0.378]
[1680562035269,1.30466932,27878.0,27875.0,0.51989681]
[1680562035488,0.013464,27878.0,27875.0,0.378]
[1680562035723,0.013284,27878.0,27875.0,0.378]
[1680562036250,0.015284,27878.0,27875.0,0.378]
[1680562036526,0.01181143,27877.0,27875.0,0.38]
[1680562036801,0.01181143,27877.0,27876.0,0.02961]
[1680562037094,0.001,27878.0,27875.0,0.378]
[1680562037377,0.01478835,27879.0,27875.0,0.73857331]
[1680562037629,0.01478835,27879.0,27875.0,0.76357331]
[1680562037630,1.29117452,27878.0,27875.0,0.76357331]
[1680562037865,1.29135452,27878.0,27877.0,0.378]
[1680562039239,1.29135452,27878.0,27877.0,0.39]
[1680562040570,1.29135452,27878.0,27877.0,0.378]
[1680562040794,1.29135452,27878.0,27877.0,0.383]
[1680562042133,1.29135452,27878.0,27877.0,0.005]
[1680562042134,1.29494152,27878.0,27877.0,0.005]
[1680562042349,1.30722489,27878.0,27877.0,0.005]
[1680562042574,1.30721842,27878.0,27877.0,0.005]
[1680562043033,1.33467142,27878.0,27874.0,0.83091698]
[1680562043259,0.03689405,27878.0,27874.0,0.83091698]
[1680562043499,0.01687037,27878.0,27876.0,0.43104054]
[1680562043723,0.001,27878.0,27877.0,0.032797]
[1680562043994,0.001,27878.0,27876.0,0.43104054]
[1680562044661,0.0174044,27879.0,27876.0,0.43104054]
[1680562045146,1.2911617,27878.0,27876.0,0.43104054]
[1680562045333,1.2949287,27878.0,27876.0,0.43604054]
[1680562045558,0.003767,27878.0,27876.0,0.43104054]
[1680562045785,0.003587,27878.0,27876.0,0.43604054]
[1680562046227,0.065566,27880.0,27876.0,0.80904054]
[1680562046485,1.29113928,27879.0,27876.0,0.80904054]
[1680562046699,1.29113928,27879.0,27876.0,0.81404054]
[1680562046700,1.29490528,27879.0,27876.0,0.81404054]
[1680562046928,0.003766,27879.0,27876.0,0.81404054]
[1680562047150,0.003586,27879.0,27876.0,0.81404054]
[1680562047517,0.003586,27879.0,27877.0,0.029451]
[1680562047924,0.003586,27879.0,27876.0,0.81404054]
[1680562048709,0.004586,27879.0,27877.0,0.41405477]
[1680562048899,0.004766,27879.0,27877.0,0.41405477]
[1680562049117,0.01137287,27879.0,27877.0,0.41405477]
[1680562049330,0.01158848,27878.0,27876.0,0.005]
[1680562049548,0.003587,27877.0,27874.0,0.37691966]
[1680562049785,0.02343068,27877.0,27874.0,0.37691966]
[1680562049987,0.003587,27877.0,27875.0,0.4615437]
[1680562051072,0.003587,27877.0,27875.0,0.4735437]
[1680562051748,0.003587,27877.0,27875.0,0.4615437]
[1680562051964,0.003587,27877.0,27875.0,0.4735437]
[1680562052186,0.003587,27877.0,27875.0,0.4615437]
[1680562052405,0.003587,27877.0,27875.0,0.4735437]
[1680562053580,0.01517548,27878.0,27875.0,0.4735437]
[1680562053806,0.003767,27879.0,27876.0,0.3778957]
[1680562054028,1.2911667,27878.0,27876.0,0.51979251]
[1680562054269,1.2913467,27878.0,27876.0,0.3778957]
[1680562054727,0.00018,27878.0,27877.0,0.031053]
[1680562054939,0.00018,27878.0,27877.0,0.1]
[1680562055163,0.00018,27878.0,27877.0,0.131546]
[1680562055832,0.00018,27878.0,27877.0,0.129375]
[1680562056296,0.00018,27878.0,27877.0,0.52025298]
[1680562056743,0.00118,27878.0,27877.0,0.52025298]
[1680562056960,1.29233449,27878.0,27877.0,0.52025298]
[1680562057184,1.29233449,27878.0,27877.0,0.49087798]
[1680562057821,1.29215449,27878.0,27877.0,0.39105798]
[1680562058061,1.29215449,27878.0,27877.0,0.00018]
[1680562058276,1.29215449,27878.0,27875.0,0.00018]
[1680562058277,1.33530123,27878.0,27875.0,0.00018]
[1680562058497,0.01642374,27878.0,27875.0,0.00018]
[1680562058726,0.01642374,27878.0,27874.0,0.00018]
[1680562058727,0.0618,27877.0,27874.0,0.00018]
[1680562058949,1.4164584,27876.0,27872.0,0.00018]
[1680562059175,1.31958061,27875.0,27872.0,0.00018]
[1680562059428,1.32209561,27874.0,27872.0,0.00018]
[1680562059642,0.02829,27873.0,27872.0,0.00018]
[1680562059858,0.003587,27873.0,27871.0,0.74539005]
[1680562060088,0.003587,27873.0,27872.0,0.001]
[1680562060331,0.003587,27873.0,27871.0,0.74539005]
[1680562060553,0.006587,27873.0,27872.0,0.001]
[1680562061894,0.02037577,27873.0,27872.0,0.001]
[1680562062113,0.006587,27873.0,27872.0,0.001]
[1680562062328,0.01702069,27873.0,27872.0,0.001]
[1680562062983,0.01402069,27873.0,27870.0,2.12164171]
[1680562063229,0.02302069,27873.0,27872.0,0.001]
[1680562063884,0.01402069,27873.0,27871.0,0.37937453]
[1680562065255,0.02302069,27873.0,27872.0,0.001]
[1680562065458,0.01402069,27873.0,27871.0,0.37937453]
[1680562065896,0.003587,27873.0,27871.0,0.37937453]
[1680562066132,1.56585684,27872.0,27871.0,0.00018]
[1680562066362,1.56585684,27872.0,27870.0,1.761198]
[1680562066363,1.7507598,27872.0,27870.0,1.761198]
[1680562066585,1.66107873,27871.0,27870.0,1.761018]
[1680562066807,1.73060526,27871.0,27870.0,1.761018]
[1680562067250,1.68761809,27871.0,27870.0,1.761018]
[1680562067708,1.81645035,27871.0,27870.0,1.761018]
[1680562067930,1.81645359,27871.0,27870.0,1.761018]
[1680562068154,2.11645349,27871.0,27870.0,1.761018]
[1680562068429,2.21000526,27871.0,27870.0,1.761018]
[1680562068638,2.21900526,27871.0,27870.0,1.763018]
[1680562068854,2.49053705,27871.0,27870.0,1.763018]
[1680562069091,2.31900526,27871.0,27870.0,1.763018]
[1680562069304,2.17595521,27871.0,27870.0,1.763018]
[1680562069766,1.99655521,27871.0,27870.0,1.763018]
[1680562069994,1.910773,27871.0,27870.0,1.763018]
[1680562070428,2.010773,27871.0,27870.0,1.763018]
[1680562071526,2.02177317,27871.0,27870.0,1.763018]
[1680562071736,2.02358096,27871.0,27870.0,1.763018]
[1680562071973,2.01458096,27871.0,27870.0,1.761018]
[1680562072198,2.02358096,27871.0,27870.0,1.763018]
[1680562073308,1.82876002,27871.0,27870.0,1.763018]
[1680562073554,1.82026002,27871.0,27870.0,1.763018]
[1680562073768,2.02026002,27871.0,27870.0,1.763018]
[1680562075102,2.00745206,27871.0,27870.0,1.763018]
[1680562075331,2.01595206,27871.0,27870.0,1.763018]
[1680562075565,2.23226406,27871.0,27870.0,1.763018]
[1680562079042,2.24400939,27871.0,27870.0,1.763018]
[1680562079730,2.02769739,27871.0,27870.0,1.763018]
[1680562081302,2.01595206,27871.0,27870.0,1.763018]
[1680562081562,1.90429306,27871.0,27870.0,1.763018]
[1680562081788,1.93261787,27871.0,27870.0,1.763018]
[1680562082008,1.93261787,27871.0,27870.0,1.76290071]
[1680562082429,1.93261787,27871.0,27870.0,1.76090071]
[1680562082430,1.92361787,27871.0,27870.0,1.76090071]
[1680562082655,1.94050557,27871.0,27870.0,1.76290071]
[1680562082874,1.93332737,27871.0,27870.0,1.76108071]
[1680562083112,1.94032737,27871.0,27870.0,1.76308071]
[1680562083350,1.93332737,27871.0,27870.0,1.76108071]
[1680562083541,2.13501053,27871.0,27870.0,1.76108071]
[1680562083794,2.14201053,27871.0,27870.0,1.76308071]
[1680562084290,1.94032737,27871.0,27870.0,1.76308071]
[1680562087216,2.01062737,27871.0,27870.0,1.76308071]
[1680562088113,2.00362737,27871.0,27870.0,1.76108071]
[1680562088333,2.01162737,27871.0,27870.0,1.76308071]
[1680562089676,2.049849,27871.0,27870.0,1.76308071]
[1680562089903,2.26349826,27871.0,27870.0,1.76308071]
[1680562090122,2.25024807,27871.0,27870.0,1.76308071]
[1680562090338,2.26378443,27871.0,27870.0,1.76308071]
[1680562090619,2.25024807,27871.0,27870.0,1.76308071]
[1680562091071,2.24224807,27871.0,27870.0,1.76108071]
[1680562091271,2.26924807,27871.0,27870.0,1.76108071]
[1680562091521,2.24242627,27871.0,27870.0,1.76090071]
[1680562091737,2.26942627,27871.0,27870.0,1.75801241]
[1680562093051,2.24242627,27871.0,27870.0,1.75801241]
[1680562093931,2.26942627,27871.0,27870.0,1.75801241]
[1680562097190,2.06685915,27871.0,27870.0,1.89990922]
[1680562097424,2.06685915,27871.0,27870.0,1.75801241]
[1680562098332,2.05679687,27871.0,27870.0,1.75801241]
[1680562098558,1.75061787,27871.0,27870.0,2.03814566]
[1680562098779,1.42240887,27871.0,27870.0,2.03814566]
[1680562099230,1.42223067,27871.0,27870.0,2.03832566]
[1680562099469,1.57684313,27871.0,27870.0,2.03832566]
[1680562099906,1.54984313,27871.0,27870.0,2.03832566]
[1680562100135,1.42223067,27871.0,27870.0,2.03932566]
[1680562100355,1.39523067,27871.0,27870.0,2.03832566]
[1680562100577,1.41340887,27871.0,27870.0,2.03932566]
[1680562100814,1.41323067,27871.0,27870.0,2.03932566]
[1680562101036,1.44142367,27871.0,27870.0,2.03932566]
[1680562101273,1.41323067,27871.0,27870.0,2.03932566]
[1680562101543,1.44197467,27871.0,27870.0,2.03932566]
[1680562102722,1.44207567,27871.0,27870.0,2.03932566]
[1680562103177,1.44103467,27871.0,27870.0,2.03932566]
[1680562104333,1.40964367,27871.0,27870.0,2.13719241]
[1680562104600,0.118,27871.0,27870.0,2.16785741]
[1680562104821,0.118,27871.0,27870.0,2.16917741]
[1680562105714,0.1,27871.0,27870.0,2.16829741]
[1680562106001,0.1,27871.0,27870.0,2.16835741]
[1680562106270,0.124,27871.0,27870.0,2.16935741]
[1680562106536,0.1,27871.0,27870.0,2.16835741]
[1680562106799,0.118,27871.0,27870.0,2.16785741]
[1680562109189,0.118,27871.0,27870.0,2.60667103]
[1680562110000,0.118,27871.0,27870.0,2.16785741]
[1680562111370,0.118,27871.0,27870.0,2.59386791]
[1680562111371,0.118,27871.0,27870.0,2.21586791]
[1680562111589,0.118,27871.0,27870.0,2.59386791]
[1680562111790,0.118,27871.0,27870.0,2.16785741]
[1680562112608,0.118,27871.0,27870.0,2.18717996]
[1680562112836,0.118,27871.0,27870.0,2.16785741]
[1680562115297,0.118,27871.0,27870.0,2.51037018]
[1680562115516,0.121587,27871.0,27870.0,2.13303318]
[1680562115737,0.121587,27871.0,27870.0,2.10170518]
[1680562116429,0.118,27871.0,27870.0,2.10170518]
[1680562118146,0.121587,27871.0,27870.0,2.10170518]
[1680562118464,0.118,27871.0,27870.0,2.13719241]
[1680562118684,0.118,27871.0,27870.0,2.58976403]
[1680562118896,0.118,27871.0,27870.0,2.55923703]
[1680562120189,0.118,27871.0,27870.0,2.58946503]
[1680562120414,0.118,27871.0,27870.0,2.13719241]
[1680562120855,0.118,27871.0,27870.0,2.16706241]
[1680562122050,0.118,27871.0,27870.0,2.17046241]
[1680562122616,0.118,27871.0,27870.0,2.25576241]
[1680562122889,0.11792519,27871.0,27870.0,2.25558241]
[1680562123336,0.11792519,27871.0,27870.0,2.25576241]
[1680562123926,0.09992519,27871.0,27870.0,2.25476241]
[1680562124158,0.09992519,27871.0,27870.0,2.17628241]
[1680562124159,0.10192519,27871.0,27870.0,2.17628241]
[1680562124358,0.09992519,27871.0,27870.0,2.16928241]
[1680562124755,0.10192519,27871.0,27870.0,2.17628241]
[1680562125167,0.10192519,27871.0,27870.0,2.61870627]
[1680562125370,0.10192519,27871.0,27870.0,2.61888627]
[1680562125673,0.09992519,27871.0,27870.0,2.61188627]
[1680562125852,0.10192519,27871.0,27870.0,2.61888627]
[1680562126049,0.09992519,27871.0,27870.0,2.61188627]
[1680562126272,0.10192519,27871.0,27870.0,2.61870627]
[1680562126487,0.09992519,27871.0,27870.0,2.58183627]
[1680562126746,0.10192519,27871.0,27870.0,2.58901627]
[1680562126981,0.10192519,27871.0,27870.0,2.61938327]
[1680562127213,0.09992519,27871.0,27870.0,2.61238327]
[1680562127649,0.10192519,27871.0,27870.0,2.61938327]
[1680562127863,0.10192519,27871.0,27870.0,2.61956327]
[1680562128074,0.10192519,27871.0,27870.0,2.61938327]
[1680562128501,0.09992519,27871.0,27870.0,2.61238327]
[1680562128713,0.10351219,27871.0,27870.0,2.20383627]
[1680562128932,0.10551219,27871.0,27870.0,2.20401627]
[1680562129370,0.10392519,27871.0,27870.0,2.21101627]
[1680562129593,0.09992519,27871.0,27870.0,2.20401627]
[1680562129816,0.10092519,27871.0,27870.0,2.58883627]
[1680562130044,0.10092519,27871.0,27870.0,2.21083627]
[1680562130254,0.10092519,27871.0,27870.0,2.58883627]
[1680562130884,0.10092519,27871.0,27870.0,2.58901627]
[1680562131103,0.10092519,27871.0,27870.0,2.58883627]
[1680562131518,0.10092519,27871.0,27870.0,2.58901627]
[1680562131967,0.10092519,27871.0,27870.0,2.57883627]
[1680562132184,0.10092519,27871.0,27870.0,2.60963527]
[1680562132643,0.10092519,27871.0,27870.0,2.57883627]
[1680562132851,0.10092519,27871.0,27870.0,2.61047127]
[1680562133290,0.09992519,27871.0,27870.0,2.60347127]
[1680562134421,0.09992519,27871.0,27870.0,2.60547127]
[1680562134656,0.09992519,27871.0,27870.0,2.60347127]
[1680562134876,0.10092519,27871.0,27870.0,2.61047127]
[1680562135297,0.09992519,27871.0,27870.0,2.60347127]
[1680562135514,0.09992519,27871.0,27870.0,2.60547127]
[1680562135732,0.09992519,27871.0,27870.0,2.60347127]
[1680562135972,0.09992519,27871.0,27870.0,2.60547127]
[1680562136396,0.09992519,27871.0,27870.0,2.60347127]
[1680562137282,0.09992519,27871.0,27870.0,2.60547127]
[1680562138188,0.09992519,27871.0,27870.0,2.13141241]
[1680562139087,0.09992519,27871.0,27870.0,2.13134356]
[1680562139299,0.09992519,27871.0,27870.0,2.53984871]
[1680562139509,0.09992519,27871.0,27870.0,2.57016471]
[1680562139729,0.09992519,27871.0,27870.0,2.50846886]
[1680562140207,0.09992519,27871.0,27870.0,2.41547442]
[1680562140435,0.09992519,27871.0,27870.0,2.36165442]
[1680562140655,0.09992519,27871.0,27870.0,2.71891306]
[1680562140925,0.09992519,27871.0,27870.0,2.35965442]
[1680562141165,0.09992519,27871.0,27870.0,2.36165442]
[1680562142520,0.09992519,27871.0,27870.0,2.36183442]
[1680562143065,0.09992519,27871.0,27870.0,2.36165442]
[1680562145034,0.09992519,27871.0,27870.0,2.75974128]
[1680562147579,0.09992519,27871.0,27870.0,2.36165442]
[1680562150084,0.09992519,27871.0,27870.0,2.69236281]
[1680562150308,0.09992519,27871.0,27870.0,2.36165442]
[1680562150995,0.09992519,27871.0,27870.0,2.7758552]
[1680562151440,0.09992519,27871.0,27870.0,2.7760352]
[1680562151877,0.09992519,27871.0,27870.0,2.19786034]
[1680562152102,0.09992519,27871.0,27870.0,2.19446034]
[1680562152795,0.09992519,27871.0,27870.0,2.19246034]
[1680562153018,0.09992519,27871.0,27870.0,2.16414434]
[1680562153237,0.09992519,27871.0,27870.0,2.16214434]
[1680562153452,0.09992519,27871.0,27870.0,2.19551434]
[1680562154149,0.09992519,27871.0,27870.0,2.15931356]
[1680562155536,0.09992519,27871.0,27870.0,2.55044964]
[1680562155757,0.09992519,27871.0,27870.0,2.6060976]
[1680562155969,0.09992519,27871.0,27870.0,2.15931356]
[1680562156629,0.09992519,27871.0,27870.0,2.53626839]
[1680562157316,0.09992519,27871.0,27870.0,2.54006839]
[1680562158604,0.09992519,27871.0,27870.0,2.53626839]
[1680562158822,0.09992519,27871.0,27870.0,2.15826839]
[1680562159269,0.09992519,27871.0,27870.0,2.12689839]
[1680562162152,0.09992519,27871.0,27870.0,2.15789739]
[1680562162408,0.09992519,27871.0,27870.0,2.12689839]
[1680562162671,0.09992519,27871.0,27870.0,2.15673039]
[1680562162954,0.09992519,27871.0,27870.0,2.15778139]
[1680562163175,0.09992519,27871.0,27870.0,2.14778139]
[1680562163899,0.09992519,27871.0,27870.0,2.52578139]
[1680562164326,0.09992519,27871.0,27870.0,2.56696834]
[1680562164512,0.09992519,27871.0,27870.0,2.55696834]
[1680562165808,0.09992519,27871.0,27870.0,2.54696834]
[1680562166240,0.09992519,27871.0,27870.0,2.13272656]
[1680562166451,0.09992519,27871.0,27870.0,2.55318203]
[1680562168855,0.09992519,27871.0,27870.0,2.55336203]
[1680562169811,0.09992519,27871.0,27870.0,2.55318203]
[1680562170867,0.09992519,27871.0,27870.0,2.52229903]
[1680562171083,0.09992519,27871.0,27870.0,2.55464503]
[1680562172187,0.09992519,27871.0,27870.0,2.52229903]
[1680562174459,0.09992519,27871.0,27870.0,2.55293903]
[1680562178335,0.09992519,27871.0,27870.0,2.54903903]
[1680562178559,0.19123622,27871.0,27870.0,1.71994356]
[1680562178785,0.21989722,27871.0,27870.0,1.71994356]
[1680562179009,1.51154041,27871.0,27870.0,1.71994356]
[1680562179228,1.51154041,27871.0,27870.0,1.71794356]
[1680562179448,1.51154041,27871.0,27870.0,1.71994356]
[1680562179681,1.51154041,27871.0,27870.0,1.71794356]
[1680562179903,1.51654041,27871.0,27870.0,1.71894356]
[1680562180127,1.51654041,27871.0,27870.0,1.71794356]
[1680562180338,1.51154041,27871.0,27870.0,1.71794356]
[1680562181016,1.49568007,27871.0,27870.0,1.71794356]
[1680562181233,1.50668007,27871.0,27870.0,1.71894356]
[1680562186782,1.46096838,27871.0,27870.0,1.71894356]
[1680562187005,1.48918138,27871.0,27870.0,1.71894356]
[1680562187221,1.46096838,27871.0,27870.0,1.71894356]
[1680562187444,1.48914738,27871.0,27870.0,1.71894356]
[1680562187888,1.48914738,27871.0,27870.0,2.06061621]
[1680562187889,0.11110339,27871.0,27870.0,2.06061621]
[1680562191738,0.11092519,27871.0,27870.0,2.06079621]
[1680562191961,0.11110339,27871.0,27870.0,2.06061621]
[1680562193547,0.16960339,27871.0,27870.0,2.06061621]
[1680562196175,0.16942519,27871.0,27870.0,2.06079621]
[1680562196400,0.16960339,27871.0,27870.0,2.06061621]
[1680562198379,0.17319039,27871.0,27870.0,2.06061621]
[1680562198594,0.17319039,27871.0,27870.0,1.71894356]
[1680562199042,0.2346979,27871.0,27870.0,1.71894356]
[1680562199474,0.44105485,27871.0,27870.0,1.70484356]
[1680562199696,0.44105485,27871.0,27870.0,0.98414556]
[1680562199697,2.81252906,27871.0,27870.0,0.98414556]
[1680562200032,2.81252906,27871.0,27863.0,0.0208]
[1680562200033,0.2,27865.0,27863.0,0.0208]
[1680562200221,1.53792567,27864.0,27863.0,0.0208]
[1680562200432,1.75195112,27864.0,27863.0,0.0208]
[1680562200659,1.73210744,27864.0,27863.0,0.0208]
[1680562200875,1.73210744,27864.0,27863.0,0.0158]
[1680562201530,1.73228564,27864.0,27863.0,0.0158]
[1680562201970,1.72710744,27864.0,27863.0,0.0158]
[1680562202199,1.70710744,27864.0,27863.0,0.0158]
[1680562202436,1.73410744,27864.0,27863.0,0.0158]
[1680562202876,1.72560744,27864.0,27863.0,0.0158]
[1680562203102,1.69860744,27864.0,27863.0,0.0158]
[1680562203327,1.72560744,27864.0,27863.0,0.0158]
[1680562204700,1.69860744,27864.0,27863.0,0.0158]
[1680562204926,1.72560744,27864.0,27863.0,0.0158]
[1680562205145,1.92363156,27864.0,27863.0,0.0158]
[1680562206880,0.63215512,27864.0,27863.0,0.0158]
[1680562207106,0.434131,27864.0,27863.0,0.0158]
[1680562207573,1.72603383,27864.0,27863.0,0.0158]
[1680562208683,1.73453383,27864.0,27863.0,0.0158]
[1680562208944,1.90679383,27864.0,27863.0,0.0158]
[1680562209155,1.85753383,27864.0,27863.0,0.0158]
[1680562209373,2.13464843,27864.0,27863.0,0.0158]
[1680562209599,2.10764843,27864.0,27863.0,0.0158]
[1680562210258,2.27973023,27864.0,27863.0,0.0158]
[1680562210505,2.27973023,27864.0,27860.0,0.019679]
[1680562210506,0.2,27862.0,27860.0,0.019679]
[1680562210709,1.41768683,27861.0,27860.0,0.019679]
[1680562211147,1.71768683,27861.0,27860.0,0.019679]
[1680562211578,1.74468683,27861.0,27860.0,0.019679]
[1680562211789,1.71768683,27861.0,27860.0,0.019679]
[1680562212015,1.74468683,27861.0,27860.0,0.019679]
[1680562212228,1.71768683,27861.0,27860.0,0.019679]
[1680562212729,0.15,27860.0,27859.0,0.00324703]
[1680562212985,0.15,27860.0,27857.0,0.00443295]
[1680562212986,0.2,27858.0,27857.0,0.00443295]
[1680562213248,1.72654383,27858.0,27857.0,0.00443295]
[1680562213494,2.08504383,27858.0,27857.0,0.00443295]
[1680562213753,2.42405186,27858.0,27857.0,0.00443295]
[1680562214033,2.45123006,27858.0,27857.0,0.00443295]
[1680562214279,2.60105186,27858.0,27857.0,0.00443295]
[1680562214519,2.45105186,27858.0,27857.0,0.00443295]
[1680562214978,2.42405186,27858.0,27857.0,0.00443295]
[1680562215226,2.40525186,27858.0,27857.0,0.00443295]
[1680562215475,2.37825186,27858.0,27857.0,0.00443295]
[1680562215728,2.47825186,27858.0,27857.0,0.00443295]
[1680562216485,2.50525186,27858.0,27857.0,0.00443295]
[1680562216746,2.47825186,27858.0,27857.0,0.00443295]
[1680562216976,2.50525186,27858.0,27857.0,0.00443295]
[1680562217218,2.50525186,27858.0,27855.0,0.0208]
[1680562217219,0.15,27857.0,27855.0,0.0071737]
[1680562217464,1.73860583,27856.0,27855.0,0.0071737]
[1680562217706,1.85911583,27856.0,27855.0,0.0071737]
[1680562218930,1.68679583,27856.0,27855.0,0.0071737]
[1680562219220,1.85911583,27856.0,27855.0,0.0071737]
[1680562219429,2.14530691,27856.0,27855.0,0.0071737]
[1680562219642,1.99998691,27856.0,27855.0,0.0071737]
[1680562219867,0.70808408,27856.0,27855.0,0.0071737]
[1680562220090,0.421893,27856.0,27855.0,0.0071737]
[1680562220301,0.121893,27856.0,27855.0,0.0071737]
[1680562220528,0.077495,27856.0,27855.0,0.0071737]
[1680562220735,0.064695,27856.0,27855.0,0.0071737]
[1680562220968,0.037768,27856.0,27855.0,0.0071737]
[1680562221365,0.010768,27856.0,27855.0,0.0071737]
[1680562221609,0.037768,27856.0,27855.0,0.0071737]
[1680562222310,0.037768,27856.0,27855.0,0.0073537]
[1680562222766,0.010768,27856.0,27855.0,0.0073537]
[1680562223029,0.04669506,27856.0,27855.0,0.0073537]
[1680562224148,0.10408037,27856.0,27855.0,0.0073537]
[1680562224349,0.13083237,27856.0,27855.0,0.0071737]
[1680562224779,0.10408037,27856.0,27855.0,0.0071737]
[1680562224999,0.11258037,27856.0,27855.0,0.0071737]
[1680562225230,0.13850737,27856.0,27855.0,0.0071737]
[1680562227028,1.77302685,27856.0,27855.0,0.0071737]
[1680562227251,2.07302685,27856.0,27855.0,0.0071737]
[1680562227680,1.92302685,27856.0,27855.0,0.0071737]
[1680562228343,1.89602685,27856.0,27855.0,0.0071737]
[1680562228575,1.92302685,27856.0,27855.0,0.0071737]
[1680562228820,1.97748787,27856.0,27855.0,0.0071737]
[1680562229043,2.00448787,27856.0,27855.0,0.0071737]
[1680562229271,1.95048787,27856.0,27855.0,0.0071737]
[1680562229519,1.97748787,27856.0,27855.0,0.0071737]
[1680562229742,2.12280787,27856.0,27855.0,0.0071737]
[1680562229960,1.74061256,27856.0,27855.0,0.0071737]
[1680562230201,0.2,27848.0,27847.0,0.00091599]
[1680562230432,0.2,27848.0,27843.0,6e-05]
[1680562230433,0.2,27845.0,27843.0,6e-05]
[1680562230713,0.2,27842.0,27838.0,0.07929587]
[1680562230959,0.0128,27840.0,27838.0,0.06929587]
[1680562231199,1.49651258,27839.0,27838.0,0.06929587]
[1680562231428,1.33074468,27839.0,27838.0,0.41088613]
[1680562231666,0.3384152,27839.0,27838.0,0.06929587]
[1680562232338,0.3654152,27839.0,27838.0,0.06929587]
[1680562232780,0.0654152,27839.0,27824.0,0.5706]
[1680562233025,0.0654152,27839.0,27830.0,0.086]
[1680562233026,0.2,27835.0,27830.0,0.086]
[1680562233246,0.03062068,27834.0,27831.0,0.378]
[1680562233468,0.03079888,27834.0,27831.0,0.378]
[1680562233701,0.0109552,27834.0,27831.0,0.378]
[1680562233934,0.0109552,27834.0,27830.0,0.086]
[1680562234154,0.1033314,27834.0,27829.0,0.09730199]
[1680562234395,0.1033314,27834.0,27829.0,0.47530199]
[1680562234396,0.01984368,27833.0,27829.0,0.47530199]
[1680562234656,0.003593,27832.0,27829.0,0.47530199]
[1680562234898,0.003593,27832.0,27829.0,0.46030199]
[1680562235119,0.36548288,27831.0,27829.0,0.46030199]
[1680562235367,0.003593,27830.0,27829.0,0.08230199]
[1680562235596,0.37284708,27831.0,27829.0,0.11401499]
[1680562235597,0.36925408,27831.0,27829.0,0.11401499]
[1680562235819,0.36925408,27831.0,27830.0,0.031997]
[1680562236055,0.36925408,27831.0,27829.0,0.08230199]
[1680562236288,0.0001782,27831.0,27830.0,0.31065699]
[1680562236505,0.0037702,27832.0,27830.0,0.34327099]
[1680562236749,0.0037702,27832.0,27831.0,0.086]
[1680562236750,0.0001782,27832.0,27831.0,0.086]
[1680562236959,0.0001782,27834.0,27832.0,0.0859]
[1680562237219,0.28269582,27835.0,27833.0,0.49578]
[1680562237455,0.0037702,27835.0,27834.0,0.0856]
[1680562237675,0.34787257,27835.0,27833.0,0.378]
[1680562237898,0.011,27834.0,27833.0,0.58744557]
[1680562238112,0.0111782,27834.0,27833.0,0.62019357]
[1680562238334,0.0037702,27834.0,27833.0,0.62019357]
[1680562238816,0.0001782,27834.0,27833.0,0.62019357]
[1680562239036,0.0207702,27834.0,27833.0,0.62019357]
[1680562239466,0.05797596,27834.0,27831.0,0.17238]
[1680562239696,0.05797596,27834.0,27830.0,0.08618]
[1680562239697,0.05797596,27834.0,27832.0,0.032364]
[1680562239908,0.05797596,27834.0,27831.0,0.0322]
[1680562240355,0.37911476,27833.0,27831.0,0.0322]
[1680562240569,0.38288496,27833.0,27831.0,0.0322]
[1680562240788,0.38288496,27833.0,27830.0,0.34026107]
[1680562241019,0.0001782,27833.0,27831.0,0.81866117]
[1680562241241,0.0001782,27833.0,27832.0,0.30967192]
[1680562241464,0.0001782,27833.0,27832.0,0.27771892]
[1680562241898,0.0001782,27833.0,27832.0,0.31115492]
[1680562242584,0.0001782,27833.0,27832.0,0.27771892]
[1680562242819,0.0001782,27833.0,27832.0,0.030924]
[1680562243041,0.3147675,27833.0,27832.0,0.030924]
[1680562243247,0.0111782,27833.0,27831.0,0.76174741]
[1680562243469,0.011,27833.0,27832.0,0.031467]
[1680562243686,0.0111782,27833.0,27831.0,0.76174741]
[1680562243912,0.0001782,27833.0,27832.0,0.030713]
[1680562244133,0.0171782,27833.0,27832.0,0.030713]
[1680562244770,0.0001782,27833.0,27831.0,0.76174741]
[1680562245060,0.0171782,27833.0,27831.0,0.76174741]
[1680562245731,0.0519019,27833.0,27831.0,0.76174741]
[1680562245957,0.0171782,27833.0,27831.0,0.76174741]
[1680562246189,0.0001782,27833.0,27831.0,0.76174741]
[1680562246416,0.0171782,27833.0,27831.0,0.76174741]
[1680562246629,0.0001782,27833.0,27832.0,0.032084]
[1680562246853,0.38058753,27833.0,27831.0,0.38374741]
[1680562247077,0.36847283,27832.0,27829.0,0.65080449]
[1680562247306,0.0128,27830.0,27825.0,0.00018]
[1680562247541,0.0128,27830.0,27822.0,0.0208]
[1680562247542,0.7,27823.0,27822.0,0.0208]
[1680562247776,0.85209188,27823.0,27822.0,0.0208]
[1680562248005,0.0001782,27823.0,27822.0,0.36246646]
[1680562248245,0.0001782,27823.0,27822.0,0.38047416]
[1680562248489,0.0037722,27823.0,27822.0,0.0208]
[1680562248950,0.40184926,27823.0,27822.0,0.0208]
[1680562249175,0.40184926,27823.0,27822.0,0.0158]
[1680562249404,0.42867106,27823.0,27822.0,0.0158]
[1680562249625,0.40167106,27823.0,27822.0,0.0158]
[1680562249856,0.46383006,27823.0,27822.0,0.0158]
[1680562250677,0.40167106,27823.0,27822.0,0.0158]
[1680562250938,0.42867106,27823.0,27822.0,0.0158]
[1680562251165,0.40167106,27823.0,27822.0,0.0158]
[1680562252086,0.17605443,27823.0,27817.0,6e-05]
[1680562252322,0.17605443,27823.0,27815.0,0.0657474]
[1680562252323,0.7,27818.0,27815.0,0.0657474]
[1680562252559,0.72002188,27818.0,27816.0,0.34304903]
[1680562252818,0.7001782,27818.0,27816.0,0.72104903]
[1680562253033,0.0001782,27818.0,27816.0,0.72978022]
[1680562253269,0.0001782,27819.0,27817.0,0.023166]
[1680562253492,0.027594,27818.0,27817.0,0.023166]
[1680562253698,0.003594,27818.0,27817.0,0.023166]
[1680562253945,0.007594,27818.0,27817.0,0.023166]
[1680562254178,0.004,27818.0,27817.0,0.023166]
[1680562254405,0.007594,27818.0,27817.0,0.023166]
[1680562254645,0.0077722,27818.0,27817.0,0.023166]
[1680562254872,0.39081571,27818.0,27816.0,0.378]
[1680562255093,0.39081571,27818.0,27816.0,0.71131619]
[1680562255094,0.40181571,27818.0,27816.0,0.71131619]
[1680562255566,0.0147722,27818.0,27816.0,0.71131619]
[1680562255787,0.01108123,27818.0,27816.0,0.71131619]
[1680562256009,0.01525943,27818.0,27816.0,0.71131619]
[1680562256226,0.33880702,27818.0,27816.0,0.71131619]
[1680562256451,0.33480702,27818.0,27814.0,0.00018]